fUST/lending_fUST_20251129
["ID","MTS","AMOUNT","RATE_DAILY","PERIOD"]
[395087847,1764418273967,193.06,1.8e-05,2]
[395087848,1764418274321,193.06,1.8e-05,2]
[395087849,1764418274628,193.06,1.9e-05,2]
[395087850,1764418274942,193.06,1.9e-05,2]
[395087851,1764418275322,193.06,1.9e-05,2]
[395087852,1764418275622,193.06,1.9e-05,2]
[395087853,1764418275934,193.06,2e-05,2]
[395087854,1764418276328,193.06,2e-05,2]
[395087855,1764418276655,193.06,2e-05,2]
[395087856,1764418276672,-10000.01,0.00010831,2]
[395087857,1764418276966,193.06,2e-05,2]
[395087858,1764418277299,193.06,2.1e-05,2]
[395087859,1764418278120,193.06,2.1e-05,2]
[395087860,1764418278226,193.06,2.1e-05,2]
[395087861,1764418278526,193.06,2.1e-05,2]
[395087862,1764418278919,193.06,2.2e-05,2]
[395087863,1764418279312,193.06,2.2e-05,2]
[395087864,1764418279378,-150.0,0.00010723,2]
[395087865,1764418279413,-9700.01,0.00010831,2]
[395087866,1764418279772,193.06,2.2e-05,2]
[395087867,1764418279809,-10000.01,0.00010831,2]
[395087868,1764418279941,-10000.01,0.00010831,2]
[395087869,1764418280067,-10000.01,0.00010831,2]
[395087870,1764418280835,193.04,1e-05,2]
[395087871,1764418282375,-10000.01,0.00010831,2]
[395087872,1764418286050,-10000.01,0.00010831,2]
[395087873,1764418286282,-10000.01,0.00010831,2]
[395087874,1764418286377,-10000.01,0.00010831,2]
[395087875,1764418286490,-10000.01,0.00010831,2]
[395087876,1764418286606,-10000.01,0.00010831,2]
[395087877,1764418286699,-10000.01,0.00010831,2]
[395087878,1764418286819,-10000.01,0.00010831,2]
[395087882,1764418288870,-10000.01,0.00010831,2]
[395087884,1764418291735,-10000.01,0.00010831,2]
[395087885,1764418291913,-10000.01,0.00010831,2]
[395087886,1764418292096,-10000.01,0.00010831,2]
[395087887,1764418292341,-10000.01,0.00010831,2]
[395087888,1764418292569,-10000.01,0.00010831,2]
[395087889,1764418292767,-10000.01,0.00010831,2]
[395087890,1764418293047,-10000.01,0.00010831,2]
[395087893,1764418304119,-10000.01,0.00010831,2]
[395087894,1764418304272,-10000.01,0.00010831,2]
[395087895,1764418310698,-10000.01,0.00010831,2]
[395087896,1764418310722,-10000.01,0.00010831,2]
[395087897,1764418310736,-10000.01,0.00010831,2]
[395087898,1764418310756,-10000.01,0.00010831,2]
[395087899,1764418310793,-10000.01,0.00010831,2]
[395087900,1764418310899,-10000.01,0.00010831,2]
[395087901,1764418311003,-10000.01,0.00010831,2]
[395087902,1764418311116,-10000.01,0.00010831,2]
[395087903,1764418311260,-10000.01,0.00010831,2]
[395087904,1764418316282,-10000.01,0.00010831,2]
[395087905,1764418316464,-10000.01,0.00010831,2]
[395087906,1764418316601,-10000.01,0.00010831,2]
[395087907,1764418316707,-10000.01,0.00010831,2]
[395087908,1764418316824,-10000.01,0.00010831,2]
[395087909,1764418316989,-10000.01,0.00010831,2]
[395087910,1764418322473,-300.0,0.0001083,2]
[395087911,1764418322513,-9400.01,0.00010831,2]
[395087912,1764418322644,-10000.01,0.00010831,2]
[395087913,1764418322777,-10000.01,0.00010831,2]
[395087914,1764418322894,-10000.01,0.00010831,2]
[395087915,1764418323106,-10000.01,0.00010831,2]
[395087916,1764418323224,-10000.01,0.00010831,2]
[395087920,1764418383189,1134.15,1e-05,2]
[395087921,1764418383487,1134.15,1e-05,2]
[395087922,1764418383765,1134.15,1.1e-05,2]
[395087923,1764418384145,1134.15,1.1e-05,2]
[395087924,1764418384433,1134.15,1.1e-05,2]
[395087925,1764418385529,771.52734732,1.1e-05,2]
[395087926,1764418385559,362.62265268,1.1e-05,2]
[395087927,1764418385865,1134.15,1.2e-05,2]
[395087928,1764418386155,1134.15,1.2e-05,2]
[395087929,1764418386544,1134.15,1.2e-05,2]
[395087930,1764418386866,1134.15,1.2e-05,2]
[395087931,1764418387148,1134.15,1.3e-05,2]
[395087932,1764418387450,1134.15,1.3e-05,2]
[395087933,1764418387924,1134.15,1.3e-05,2]
[395087934,1764418388693,1134.15,1.3e-05,2]
[395087935,1764418389068,1134.15,1.4e-05,2]
[395087936,1764418389389,1134.15,1.4e-05,2]
[395087937,1764418389703,1134.15,1.4e-05,2]
[395087938,1764418390107,1134.15,1.4e-05,2]
[395087939,1764418390430,1134.15,1.5e-05,2]
[395087940,1764418390817,1134.15,1.5e-05,2]
[395087941,1764418391190,1134.15,1.5e-05,2]
[395087942,1764418391488,1134.15,1.5e-05,2]
[395087943,1764418391781,1134.15,1.6e-05,2]
[395087944,1764418392081,1134.15,1.6e-05,2]
[395087945,1764418392383,1134.15,1.6e-05,2]
[395087946,1764418392684,1134.15,1.6e-05,2]
[395087947,1764418393093,1134.15,1.7e-05,2]
[395087948,1764418393282,820.22734732,1.7e-05,2]
[395087949,1764418393309,313.92265268,1.7e-05,2]
[395087950,1764418393599,1134.15,1.7e-05,2]
[395087951,1764418393981,1134.15,1.7e-05,2]
[395087952,1764418394442,1134.15,1.8e-05,2]
[395087953,1764418395250,1134.15,1.8e-05,2]
[395087954,1764418395581,1134.15,1.8e-05,2]
[395087955,1764418395936,1134.15,1.8e-05,2]
[395087956,1764418396280,1134.15,1.9e-05,2]
[395087957,1764418396578,1134.15,1.9e-05,2]
[395087958,1764418396951,1134.15,1.9e-05,2]
[395087959,1764418397267,1134.15,1.9e-05,2]
[395087960,1764418397570,1134.15,2e-05,2]
[395087961,1764418397873,1134.15,2e-05,2]
[395087962,1764418398176,1134.15,2e-05,2]
[395087963,1764418398471,1134.15,2e-05,2]
[395087964,1764418398809,1134.15,2.1e-05,2]
[395087965,1764418399137,1134.15,2.1e-05,2]
[395087966,1764418399488,1134.15,2.1e-05,2]
[395087967,1764418399846,1134.15,2.1e-05,2]
[395087968,1764418400115,1134.15,2.2e-05,2]
[395087969,1764418400402,1134.15,2.2e-05,2]
[395087970,1764418400715,1134.15,2.2e-05,2]
[395087971,1764418401008,868.92734732,2.3e-05,2]
[395087972,1764418401037,265.22265268,2.3e-05,2]
[395088043,1764419130160,-191.15741321,8.557e-05,2]
[395088073,1764419229169,-30.84258679,8.557e-05,2]
[395088074,1764419229190,-177.70520287,8.644e-05,2]
[395088075,1764419229209,-222.0,8.73e-05,2]
[395088076,1764419229229,-1025.9845468,8.907e-05,2]
[395088077,1764419229253,-586.91544978,8.907e-05,2]
[395088078,1764419229277,-325.31971878,9.607e-05,2]
[395088079,1764419229298,-586.91544978,9.9e-05,2]
[395088080,1764419229318,-250.0,0.00010291,2]
[395088081,1764419229338,-209.69213939,0.00010643,2]
[395088082,1764419229359,-300.0,0.00010728,2]
[395088083,1764419229379,-300.0,0.00010729,2]
[395088084,1764419229398,-300.0,0.00010729,2]
[395088085,1764419229418,-300.0,0.00010729,2]
[395088086,1764419229438,-147.46550653,0.00010729,2]
[395088088,1764419245096,-770.23129979,0.00010621,2]
[395088091,1764419248073,-2037.99013722,0.00010621,2]
[395088092,1764419248095,-500.0,0.00010728,2]
[395088093,1764419248114,-73.95900576,0.00010728,2]
[395088094,1764419248140,-426.04099424,0.00010728,2]
[395088095,1764419248159,-124.73811223,0.00010728,2]
[395088104,1764419352137,-155.38320255,0.00010466,2]
[395088105,1764419352156,-155.38320255,0.00010572,2]
[395088106,1764419352175,-279.68976459,0.00010572,2]
[395088107,1764419352194,-1200.0,0.00010727,2]
[395088108,1764419352213,-649.96909844,0.00010729,2]
[395088109,1764419354073,-402.56539503,0.00010729,2]
[395088110,1764419354095,-300.0,0.00010729,2]
[395088111,1764419354115,-3420.45520555,0.0001073,2]
[395088112,1764419355084,-13565.92173449,0.0001073,2]
[395088114,1764419366074,-2638.50910516,0.0001073,2]
[395088115,1764419372559,1028.37797645,0.00010623,2]
[395088116,1764419416520,300.0,0.00010622,2]
[395088145,1764419431622,-194.72792766,0.00010725,2]
[395088146,1764419431631,-285.02279112,0.00010725,2]
[395088147,1764419431640,-9.24928122,0.00010729,2]
[395088148,1764419431678,-290.75071878,0.00010729,2]
[395088149,1764419431687,-300.0,0.00010729,2]
[395088150,1764419431698,-300.0,0.00010729,2]
[395088151,1764419431707,-238.0,0.00010729,2]
[395088152,1764419431716,-1071.24928122,0.00010729,2]
[395088261,1764419438574,-500.0,0.00010729,2]
[395088262,1764419438583,-500.0,0.00010729,2]
[395088263,1764419438592,-500.0,0.00010729,2]
[395088264,1764419438601,-500.0,0.00010729,2]
[395088265,1764419438610,-500.0,0.00010729,2]
[395088266,1764419438618,-324.58123634,0.00010729,2]
[395088267,1764419438628,-478.57781655,0.00010729,2]
[395088305,1764419439910,-21.42218345,0.00010729,2]
[395088306,1764419439919,-268.79438799,0.00010729,2]
[395088307,1764419439930,-231.20561201,0.00010729,2]
[395088309,1764419439940,-500.0,0.00010729,2]
[395088311,1764419439949,-95.87778279,0.00010729,2]
[395088490,1764419442833,-212.34365422,0.00010729,2]
[395088491,1764419442842,-613.48789666,0.00010729,2]
[395088492,1764419442852,-500.0,0.00010729,2]
[395088493,1764419442861,-461.09393961,0.00010729,2]
[395088494,1764419442871,-500.0,0.00010729,2]
[395088495,1764419442881,-500.0,0.00010729,2]
[395088496,1764419442890,-128.75071878,0.00010729,2]
[395088497,1764419442899,-300.0,0.00010729,2]
[395088498,1764419442908,-6911.94973709,0.0001073,2]
[395088563,1764419447368,150.0,0.00010623,2]
[395088568,1764419468807,266.06434549,8.907e-05,2]
[395088569,1764419470164,300.0,0.00010622,2]
[395088570,1764419492993,236.01767806,0.00010622,2]
[395088571,1764419493012,63.98232194,0.00010622,2]
[395088572,1764419515734,300.0,0.00010622,2]
[395088580,1764419643445,832.6,1e-05,2]
[395088581,1764419643790,832.6,1e-05,2]
[395088582,1764419644134,832.6,1.1e-05,2]
[395088583,1764419644473,832.6,1.1e-05,2]
[395088584,1764419644808,832.6,1.1e-05,2]
[395088585,1764419645137,832.6,1.1e-05,2]
[395088586,1764419645512,832.6,1.2e-05,2]
[395088587,1764419645962,832.6,1.2e-05,2]
[395088588,1764419646616,832.6,1.2e-05,2]
[395088589,1764419646935,832.6,1.2e-05,2]
[395088590,1764419647366,832.6,1.3e-05,2]
[395088591,1764419647728,832.6,1.3e-05,2]
[395088592,1764419648208,832.6,1.3e-05,2]
[395088593,1764419648537,832.6,1.3e-05,2]
[395088594,1764419648902,832.6,1.4e-05,2]
[395088595,1764419649258,832.6,1.4e-05,2]
[395088596,1764419649650,832.6,1.4e-05,2]
[395088597,1764419650008,832.6,1.4e-05,2]
[395088598,1764419650366,832.6,1.5e-05,2]
[395088599,1764419650914,832.6,1.5e-05,2]
[395088600,1764419651089,832.6,1.5e-05,2]
[395088601,1764419651489,832.6,1.5e-05,2]
[395088602,1764419652075,832.6,1.6e-05,2]
[395088603,1764419652280,832.6,1.6e-05,2]
[395088604,1764419652608,832.6,1.6e-05,2]
[395088605,1764419652946,832.6,1.6e-05,2]
[395088606,1764419653626,832.6,1.7e-05,2]
[395088607,1764419653985,832.6,1.7e-05,2]
[395088608,1764419654321,832.6,1.7e-05,2]
[395088609,1764419654745,832.6,1.7e-05,2]
[395088610,1764419655396,832.6,1.8e-05,2]
[395088611,1764419655760,832.6,1.8e-05,2]
[395088612,1764419656082,832.6,1.8e-05,2]
[395088613,1764419656465,832.6,1.8e-05,2]
[395088614,1764419656902,832.6,1.9e-05,2]
[395088615,1764419657282,832.6,1.9e-05,2]
[395088616,1764419657665,832.6,1.9e-05,2]
[395088617,1764419658032,832.6,1.9e-05,2]
[395088618,1764419658371,832.6,2e-05,2]
[395088619,1764419658746,832.6,2e-05,2]
[395088620,1764419659097,832.6,2e-05,2]
[395088621,1764419659505,832.6,2e-05,2]
[395088622,1764419659900,832.6,2.1e-05,2]
[395088623,1764419660225,832.6,2.1e-05,2]
[395088624,1764419660818,832.6,2.1e-05,2]
[395088625,1764419661537,832.6,2.1e-05,2]
[395088626,1764419661855,832.6,2.2e-05,2]
[395088627,1764419662186,832.6,2.2e-05,2]
[395088628,1764419662510,832.6,2.2e-05,2]
[395088629,1764419662924,832.6,2.3e-05,2]
[395089016,1764420281842,680.35487926,8.471e-05,2]
[395089025,1764420304820,680.35487926,8.471e-05,2]
[395089030,1764420313335,680.35487926,8.471e-05,2]
[395089057,1764420337491,189.57725603,8.429e-05,2]
[395089068,1764420359788,189.57725603,8.429e-05,2]
[395089074,1764420381771,189.57725603,8.429e-05,2]
[395089082,1764420404225,189.57725603,8.429e-05,2]
[395089088,1764420422889,1133.27,1e-05,2]
[395089089,1764420423250,1133.27,1e-05,2]
[395089090,1764420423563,1133.27,1e-05,2]
[395089091,1764420423924,1133.27,1.1e-05,2]
[395089092,1764420424263,1133.27,1.1e-05,2]
[395089093,1764420424577,1133.27,1.1e-05,2]
[395089094,1764420424902,1133.27,1.1e-05,2]
[395089097,1764420425213,1133.27,1.1e-05,2]
[395089098,1764420425916,1133.27,1.2e-05,2]
[395089099,1764420426262,1133.27,1.2e-05,2]
[395089100,1764420426967,1133.27,1.2e-05,2]
[395089101,1764420427050,189.57725603,8.429e-05,2]
[395089102,1764420427081,1133.27,1.2e-05,2]
[395089103,1764420427292,1133.27,1.2e-05,2]
[395089104,1764420427633,1133.27,1.3e-05,2]
[395089105,1764420427993,1133.27,1.3e-05,2]
[395089106,1764420428319,1133.27,1.3e-05,2]
[395089107,1764420428634,1133.27,1.3e-05,2]
[395089108,1764420428951,1133.27,1.3e-05,2]
[395089109,1764420429278,1133.27,1.4e-05,2]
[395089111,1764420429595,1133.27,1.4e-05,2]
[395089112,1764420429935,1133.27,1.4e-05,2]
[395089113,1764420430272,1133.27,1.4e-05,2]
[395089114,1764420430588,1133.27,1.4e-05,2]
[395089115,1764420430900,1133.27,1.5e-05,2]
[395089116,1764420431212,1133.27,1.5e-05,2]
[395089117,1764420431547,1133.27,1.5e-05,2]
[395089120,1764420431842,1133.27,1.5e-05,2]
[395089121,1764420432143,1133.27,1.6e-05,2]
[395089122,1764420432473,1133.27,1.6e-05,2]
[395089123,1764420432823,1133.27,1.6e-05,2]
[395089124,1764420433136,1133.27,1.6e-05,2]
[395089125,1764420433534,1133.27,1.6e-05,2]
[395089126,1764420433867,1133.27,1.7e-05,2]
[395089127,1764420434201,1133.27,1.7e-05,2]
[395089128,1764420434524,1133.27,1.7e-05,2]
[395089129,1764420434832,1133.27,1.7e-05,2]
[395089130,1764420435160,1133.27,1.7e-05,2]
[395089131,1764420435490,1133.27,1.8e-05,2]
[395089132,1764420436197,1133.27,1.8e-05,2]
[395089133,1764420436523,1133.27,1.8e-05,2]
[395089134,1764420437222,1133.27,1.8e-05,2]
[395089135,1764420437272,1133.27,1.8e-05,2]
[395089136,1764420437489,1133.27,1.9e-05,2]
[395089137,1764420437800,1133.27,1.9e-05,2]
[395089139,1764420438124,1133.27,1.9e-05,2]
[395089142,1764420438464,1133.27,1.9e-05,2]
[395089143,1764420438782,1133.27,1.9e-05,2]
[395089144,1764420439112,1133.27,2e-05,2]
[395089145,1764420439445,1133.27,2e-05,2]
[395089146,1764420439778,1133.27,2e-05,2]
[395089147,1764420441119,-189.57725603,8.514e-05,2]
[395089148,1764420441142,-189.57725603,8.6e-05,2]
[395089149,1764420441165,-222.0,8.73e-05,2]
[395089150,1764420441188,-119.03162419,8.907e-05,2]
[395089151,1764420442112,-339.32325507,8.907e-05,2]
[395089152,1764420442136,-496.72902192,9.783e-05,2]
[395089153,1764420442159,-458.35487926,9.831e-05,2]
[395089154,1764420442186,-163.445,0.00010408,2]
[395089155,1764420442209,-250.0,0.00010411,2]
[395089156,1764420442232,-223.70116211,0.000106,2]
[395089157,1764420442255,-300.0,0.00010616,2]
[395089158,1764420442278,-230.08001547,0.00010617,2]
[395089159,1764420442304,-500.0,0.00010617,2]
[395089160,1764420442328,-500.0,0.00010617,2]
[395089161,1764420442352,-500.0,0.00010617,2]
[395089162,1764420442377,-500.0,0.00010617,2]
[395089163,1764420442400,-20.36757463,0.00010617,2]
[395089190,1764420546070,-1498.17199615,0.00010406,2]
[395089191,1764420546091,-181.31168767,0.00010459,2]
[395089192,1764420546111,-1498.17199615,0.00010511,2]
[395089193,1764420546130,-1200.0,0.00010617,2]
[395089194,1764420546149,-166.59131042,0.00010617,2]
[395089195,1764420546167,-226.79634519,0.00010618,2]
[395089196,1764420546193,-73.20365481,0.00010618,2]
[395089197,1764420546211,-10144.81950101,0.00010619,2]
[395089199,1764420548110,-30409.65792778,0.00010619,2]
[395089200,1764420551120,-9445.52257121,0.00010619,2]
[395089201,1764420551140,-219.0,0.00010619,2]
[395089202,1764420551158,-300.0,0.00010619,2]
[395089203,1764420551178,-1200.0,0.00010619,2]
[395089204,1764420551197,-166.13680237,0.00010619,2]
[395089205,1764420551217,-198.02866874,0.00010619,2]
[395089206,1764420551237,-500.0,0.00010619,2]
[395089207,1764420551256,-500.0,0.00010619,2]
[395089208,1764420551275,-158.90885833,0.00010619,2]
[395089209,1764420551296,-339.26313782,0.00010619,2]
[395089210,1764420551320,-51666.5748188,0.0001062,2]
[395089215,1764420562084,-761.5409893,0.00010408,2]
[395089216,1764420562106,-761.5409893,0.00010513,2]
[395089217,1764420562127,-184.06401236,0.00010549,2]
[395089218,1764420562150,-5220.00624205,0.0001062,2]
[395089223,1764420574078,-19329.34072923,0.0001062,2]
[395089264,1764420631795,-150.0,0.00010305,2]
[395089265,1764420631804,-235.0,0.00010305,2]
[395089266,1764420631813,-257.48194575,0.00010409,2]
[395089267,1764420631823,-300.0,0.00010513,2]
[395089268,1764420631832,-300.0,0.00010513,2]
[395089269,1764420631841,-1200.0,0.00010513,2]
[395089270,1764420631850,-3024.17049862,0.00010514,2]
[395089271,1764420631861,-17086.12060205,0.00010514,2]
[395089272,1764420631915,-373.11910904,0.00010514,2]
[395089320,1764420637993,-281.04,0.00010514,2]
[395089322,1764420638005,-701.99014555,0.00010514,2]
[395089360,1764420638329,-9782.36100522,0.00010514,2]
[395089362,1764420638338,-194.72792766,0.00010614,2]
[395089364,1764420638348,-1000.0,0.0001062,2]
[395089366,1764420638357,-1000.0,0.0001062,2]
[395089368,1764420638366,-1000.0,0.0001062,2]
[395089370,1764420638376,-891.66584123,0.0001062,2]
[395089372,1764420638385,-151.0,0.0001062,2]
[395089374,1764420638396,-151.0,0.0001062,2]
[395089376,1764420638405,-151.0,0.0001062,2]
[395089378,1764420638414,-151.0,0.0001062,2]
[395089380,1764420638423,-151.0,0.0001062,2]
[395089382,1764420638433,-151.0,0.0001062,2]
[395089384,1764420638442,-151.63089245,0.0001062,2]
[395089386,1764420638452,-3523.61433344,0.0001062,2]
[395089388,1764420638463,-9586.51367462,0.0001062,2]
[395089585,1764420640344,-800673.95020186,0.0001062,2]
[395089587,1764420640354,-172.0190656,0.00010649,2]
[395089589,1764420640363,-184.06401235,0.0001067,2]
[395089592,1764420640373,-167.0,0.00010693,2]
[395089594,1764420640382,-166.0,0.00010693,2]
[395089595,1764420640392,-167.0,0.00010693,2]
[395089597,1764420640402,-166.0,0.00010693,2]
[395089599,1764420640411,-167.0,0.00010693,2]
[395089601,1764420640420,-166.0,0.00010693,2]
[395089602,1764420640428,-167.0,0.00010693,2]
[395089603,1764420640437,-161.0443214,0.00010693,2]
[395089604,1764420640446,-166.0,0.00010693,2]
[395089605,1764420640454,-14094.0763902,0.0001072,2]
[395089606,1764420640463,-333.0,0.0001073,2]
[395089607,1764420640472,-333.0,0.0001073,2]
[395089608,1764420640480,-333.0,0.0001073,2]
[395089609,1764420640489,-172.34363143,0.0001073,2]
[395089610,1764420640497,-333.0,0.0001073,2]
[395089611,1764420640506,-333.0,0.0001073,2]
[395089612,1764420640515,-333.0,0.0001073,2]
[395089613,1764420640523,-336.3617487,0.0001073,2]
[395089614,1764420640532,-166.0,0.0001073,2]
[395089615,1764420640541,-152.0,0.0001073,2]
[395089616,1764420640550,-152.0,0.0001073,2]
[395089617,1764420640559,-152.0,0.0001073,2]
[395089618,1764420640568,-152.0,0.0001073,2]
[395089619,1764420640576,-152.0,0.0001073,2]
[395089620,1764420640586,-152.0,0.0001073,2]
[395089621,1764420640595,-152.0,0.0001073,2]
[395089622,1764420640604,-152.0,0.0001073,2]
[395089623,1764420640613,-152.0,0.0001073,2]
[395089624,1764420640622,-152.0,0.0001073,2]
[395089625,1764420640631,-152.0,0.0001073,2]
[395089626,1764420640639,-152.0,0.0001073,2]
[395089627,1764420640648,-152.0,0.0001073,2]
[395089628,1764420640657,-152.0,0.0001073,2]
[395089629,1764420640670,-152.0,0.0001073,2]
[395089630,1764420640679,-152.0,0.0001073,2]
[395089631,1764420640688,-152.0,0.0001073,2]
[395089632,1764420640696,-152.0,0.0001073,2]
[395089633,1764420640708,-152.0,0.0001073,2]
[395089634,1764420640718,-152.0,0.0001073,2]
[395089635,1764420640727,-152.0,0.0001073,2]
[395089636,1764420640736,-152.0,0.0001073,2]
[395089637,1764420640745,-152.0,0.0001073,2]
[395089638,1764420640754,-152.0,0.0001073,2]
[395089640,1764420640762,-152.0,0.0001073,2]
[395089641,1764420640772,-152.0,0.0001073,2]
[395089643,1764420640781,-152.0,0.0001073,2]
[395089645,1764420640791,-152.0,0.0001073,2]
[395089648,1764420640802,-152.0,0.0001073,2]
[395089649,1764420640811,-152.0,0.0001073,2]
[395089651,1764420640820,-152.0,0.0001073,2]
[395089653,1764420640829,-152.0,0.0001073,2]
[395089655,1764420640838,-152.0,0.0001073,2]
[395089657,1764420640847,-194.67498883,0.0001073,2]
[395089660,1764420640857,-1000.0,0.0001073,2]
[395089661,1764420640868,-1000.0,0.0001073,2]
[395089664,1764420640878,-1000.0,0.0001073,2]
[395089665,1764420640887,-1000.0,0.0001073,2]
[395089667,1764420640896,-1000.0,0.0001073,2]
[395089669,1764420640908,-1000.0,0.0001073,2]
[395089671,1764420640917,-1000.0,0.0001073,2]
[395089673,1764420640926,-1000.0,0.0001073,2]
[395089675,1764420640935,-1000.0,0.0001073,2]
[395089678,1764420640944,-1000.0,0.0001073,2]
[395089680,1764420640953,-1000.0,0.0001073,2]
[395089682,1764420640962,-1000.0,0.0001073,2]
[395089683,1764420640971,-1000.0,0.0001073,2]
[395089686,1764420640981,-1081.97307821,0.0001073,2]
[395089688,1764420640990,-166.0,0.0001073,2]
[395089689,1764420640999,-166.0,0.0001073,2]
[395089691,1764420641008,-166.19583976,0.0001073,2]
[395089693,1764420641018,-151.0,0.0001073,2]
[395089696,1764420641028,-151.0,0.0001073,2]
[395089698,1764420641037,-151.10219974,0.0001073,2]
[395089700,1764420641047,-151.0,0.0001073,2]
[395089702,1764420641057,-500.0,0.0001073,2]
[395089703,1764420641067,-500.0,0.0001073,2]
[395089706,1764420641076,-500.0,0.0001073,2]
[395089707,1764420641085,-500.0,0.00010731,2]
[395089710,1764420641098,-458.35487926,0.00010755,2]
[395089712,1764420641107,-184.06401235,0.00010791,2]
[395089714,1764420641117,-7155.0792186,0.00010809,2]
[395089716,1764420641126,-151.0,0.00010867,2]
[395089718,1764420641134,-198.82734352,0.00010867,2]
[395089720,1764420641144,-151.0,0.00010867,2]
[395089722,1764420641153,-500.0,0.00010867,2]
[395089724,1764420641162,-500.0,0.00010867,2]
[395089726,1764420641172,-500.0,0.00010867,2]
[395089728,1764420641181,-184.06401235,0.00010911,2]
[395089730,1764420641190,-999.0,0.00010959,2]
[395089732,1764420641199,-500.0,0.00010959,2]
[395089734,1764420641208,-500.0,0.00010959,2]
[395089736,1764420641217,-188.6862382,0.00010959,2]
[395089738,1764420641226,-500.0,0.00010959,2]
[395089740,1764420641235,-500.0,0.00010959,2]
[395089742,1764420641244,-500.0,0.00010959,2]
[395089744,1764420641253,-500.0,0.00010959,2]
[395089746,1764420641262,-500.0,0.00010959,2]
[395089748,1764420641271,-500.0,0.00010959,2]
[395089750,1764420641280,-500.0,0.00010959,2]
[395089752,1764420641290,-500.0,0.00010959,2]
[395089754,1764420641301,-500.0,0.00010959,2]
[395089756,1764420641311,-500.0,0.00010959,2]
[395089758,1764420641320,-162.88717976,0.00010959,2]
[395089760,1764420641330,-500.0,0.00010959,2]
[395089762,1764420641339,-500.0,0.00010959,2]
[395089764,1764420641348,-500.0,0.00010959,2]
[395089766,1764420641356,-501.88357999,0.00010959,2]
[395089768,1764420641365,-500.0,0.00010959,2]
[395089770,1764420641374,-500.0,0.00010959,2]
[395089772,1764420641383,-500.0,0.00010959,2]
[395089774,1764420641392,-190.72346932,0.00011004,2]
[395089776,1764420641401,-151.0,0.00011004,2]
[395089778,1764420641410,-315.3500307,0.00011004,2]
[395089780,1764420641419,-500.0,0.00011004,2]
[395089782,1764420641428,-500.0,0.00011004,2]
[395089784,1764420641437,-3421.27560105,0.00011004,2]
[395089786,1764420641446,-500.0,0.00011005,2]
[395089788,1764420641456,-184.06401235,0.00011032,2]
[395089790,1764420641465,-401.0,0.000111,2]
[395089792,1764420641474,-270.4,0.000111,2]
[395089794,1764420641483,-500.0,0.00011132,2]
[395089796,1764420641493,-151.0,0.00011132,2]
[395089798,1764420641502,-151.17315112,0.00011132,2]
[395089800,1764420641512,-500.0,0.00011132,2]
[395089803,1764420641524,-151.0,0.00011132,2]
[395089805,1764420641533,-152.33668155,0.00011132,2]
[395089807,1764420641542,-151.0,0.00011132,2]
[395089809,1764420641551,-151.0,0.00011132,2]
[395089811,1764420641560,-151.0,0.00011132,2]
[395089813,1764420641569,-151.0,0.00011132,2]
[395089815,1764420641577,-500.0,0.00011132,2]
[395089817,1764420641593,-151.0,0.00011132,2]
[395089820,1764420641606,-500.0,0.00011132,2]
[395089822,1764420641616,-151.0,0.00011132,2]
[395089824,1764420641626,-151.511978,0.00011132,2]
[395089826,1764420641635,-151.0,0.00011132,2]